Cogmind - Beta 12 @@@ ROGUE MODE // 2024.02.01 @ 17:51:28 Player: Dosh Result: Destroyed by C-40 Crusher with Compactor Performance ------------- Evolutions (4) 2000 Regions Visited (15) 3000 Robots Destroyed (271) 1355 Value Destroyed (9315) 9315 Prototype IDs (49) 980 Alien Tech Used (0) 0 Bonus (-3258) -3258 TOTAL SCORE: 13392 Bonus ------- High Alert Combat Kills 643 Follower Combat Kills 271 Entered Garrisons 200 Aligned with FarCom 300 Destroyed Z-Imprinter 1000 Triggered Deep Caves Wall 500 Exposed GOLEM Chamber 500 Friendly Fire -6672 Cogmind --------- Core Integrity 0/850 Matter 300/300 Energy 100/100 System Corruption 0% Temperature Cool (0) Movement Core (50) Location -6/Waste Parts ------- > --- POWER (2) -------- (None) > --- PROPULSION (4) --- (None) > --- UTILITY (7) ------ (None) > --- WEAPON (2) ------- (None) > --- INVENTORY (5) ---- Long-range Tractor Beam GOLEM Unit Peak State ------------ > --- POWER ------------ Light Angular Momentum Engine Light Angular Momentum Engine > --- PROPULSION ------- Armored Huge Wheel Armored Huge Wheel > --- UTILITY ---------- Huge Storage Unit Microactuators Improved Heavy Armor Plating Makeshift Hacking Suite Improved System Shield Splice Drone Bay > --- WEAPON ----------- Longsword +1 CR-A16's Pointy Stick > --- INVENTORY -------- Zionite Light DM Reactor Enhanced Armored Medium Treads Advanced Cooling System Zionite Biocell Zionite Biocell Zionite Biocell Surveybot 24 Chip Microactuators Transmission Jammer Improved Core Shielding Zionite Weapon Casing Medium Reactive Plating Improved Shield Generator Makeshift Hacking Suite System Restoration Module Long-range Tractor Beam GOLEM Unit GOLEM Unit Improved EM Pulse Cannon Firepult Precision Grenade Launcher Long-range Missile Launcher [Rating: 84] Favorites ----------- Power Neutrino Core Engine Light Ion Engine Power Core Neutrino Core Reactor Zionite Light DM Reactor Propulsion Armored Huge Wheel Treads Light Treads Wheel Armored Huge Wheel Hover Unit Zionite Glidesys I Flight Unit Improved Flight Unit Utility Microactuators Device Microactuators Storage Huge Storage Unit Processor Spectral Analyzer Hackware Makeshift Hacking Suite Protection Hardened Heavy Armor Plating Weapon Longsword +1 Energy Gun EM Pulse Gun Energy Cannon EM Pulse Cannon Ballistic Gun Improved Assault Rifle Ballistic Cannon Light Cannon Launcher Precision Grenade Launcher Special Weapon Enhanced Flamer Impact Weapon Powered Hammer Slashing Weapon Longsword +1 Piercing Weapon CR-A16's Pointy Stick Build | -11 -10 -10 -10 -9 -8 -8 -8 -7 -7 -7 -7 -7 -6 -6 -6 ------- Run | Jun Mat Min Exi Min Mat Gar Mat Fac Low Low Zio Dee Pro Fac Was Slots Evolved 8 | . . . . . 4 . . 2 . . . . . 2 . Power 1 | . . . . . . . . . . . . . . 1 . Propulsion 2 | . . . . . 1 . . 1 . . . . . . . Utility 5 | . . . . . 3 . . 1 . . . . . 1 . Weapon . | . . . . . . . . . . . . . . . . Parts Attached 245 | 7 16 5 3 3 35 31 26 28 4 3 11 32 11 28 2 Power 20 | 1 2 1 . . 3 1 3 . . . . 4 . 5 . Engine 10 | 1 2 1 . . 1 . 1 . . . . . . 4 . Core 9 | . . . . . 2 1 2 . . . . 3 . 1 . Reactor 1 | . . . . . . . . . . . . 1 . . . Propulsion 35 | 2 6 1 . 1 7 3 4 3 . . . 4 . 4 . Treads 17 | 2 5 . . 1 5 1 3 . . . . . . . . Leg . | . . . . . . . . . . . . . . . . Wheel 14 | . . 1 . . 2 1 1 3 . . . 2 . 4 . Hover 2 | . . . . . . . . . . . . 2 . . . Flight 2 | . 1 . . . . 1 . . . . . . . . . Utility 100 | 2 4 2 . 1 14 12 7 12 1 . 8 14 5 16 2 Device 45 | 1 . 1 . . 6 5 4 7 . . 4 5 4 8 . Storage 8 | 1 1 . . . 1 . 1 . . . 1 2 . . 1 Processor 2 | . . . . . . 1 . 1 . . . . . . . Hackware 5 | . . . . . 1 . . . . . 1 . . 3 . Protection 40 | . 3 1 . 1 6 6 2 4 1 . 2 7 1 5 1 Artifact . | . . . . . . . . . . . . . . . . Weapon 90 | 2 4 1 3 1 11 15 12 13 3 3 3 10 6 3 . Energy Gun 11 | 1 . 1 1 . 1 2 2 1 . . . 2 . . . Energy Cannon 6 | . . . . . 1 2 . 1 . . . 2 . . . Ballistic Gun 22 | 1 3 . . . 7 4 6 1 . . . . . . . Ballistic Cannon 6 | . 1 . 1 . 1 . . 1 . . . . . 2 . Launcher 17 | . . . . 1 . 2 3 4 1 . 1 2 3 . . Special Weapon 1 | . . . . . . . . . . 1 . . . . . Impact Weapon 2 | . . . . . . . . . 1 . 1 . . . . Slashing Weapon 16 | . . . 1 . 1 5 1 5 1 1 . 1 . . . Piercing Weapon 9 | . . . . . . . . . . 1 1 3 3 1 . Special Melee Weapon . | . . . . . . . . . . . . . . . . Unidentified Prototypes 21 | . 1 1 . . . 3 2 1 . . 1 10 . 2 . Parts Lost 34 | . 1 4 . . 3 4 5 2 1 . . 3 1 3 7 Power 5 | . 1 1 . . . 1 . . . . . . . 1 1 Propulsion 8 | . . 1 . . 2 . 1 . . . . 1 . 1 2 Utility 14 | . . 1 . . . 3 1 2 . . . 2 1 1 3 Weapon 7 | . . 1 . . 1 . 3 . 1 . . . . . 1 Highest Loss Streak 6 | . 1 2 . . 1 2 4 1 1 . . 2 1 2 6 To Critical Strikes 2 | . . . . . . . . . . . . . . . 2 Average Slot Usage (%) 81 | . 99 88 81 100 80 77 80 76 83 84 83 75 80 79 60 Engine 4 | . 13 13 14 14 3 2 . . . . . . . 9 9 Core 5 | . . . . . 4 6 8 7 7 7 7 6 7 2 . Treads 5 | . 27 17 14 14 9 5 8 1 . . . . . . . Wheel 10 | . . . 14 14 6 9 9 13 15 15 15 14 15 10 12 Device 12 | . . 1 14 3 9 9 10 21 19 15 18 14 19 11 8 Storage 8 | . 14 14 14 14 9 9 9 7 7 7 7 6 7 6 4 Processor 1 | . . . . . . 1 9 . . . . . . . . Hackware 2 | . . . . . 5 . . . . . . . . 14 12 Protection 12 | . 13 12 . 10 13 16 8 7 18 23 19 16 15 8 4 Energy Gun 2 | . 6 10 . . 3 1 7 1 1 . . . . . . Energy Cannon 1 | . . . . . 1 6 2 . . . . 4 . . . Ballistic Gun 3 | . 13 3 . . 11 7 6 2 . . . . . . . Ballistic Cannon 2 | . 7 14 . 14 1 . . 3 . . . . . . . Slashing Weapon 3 | . . . 9 . . 2 1 5 6 6 7 4 7 6 5 Piercing Weapon 1 | . . . . . . . . . . . 3 3 6 5 . Naked Turns 13 | . . . . . . . . . . . . . . . 13 Heaviest Build 141 | 13 35 36 36 37 73 95 128 135 128 128 128 141 133 133 128 Greatest Support 60 | 40 40 40 10 20 60 28 28 56 56 56 56 56 56 56 56 Greatest Overweight (x) 37 | . 1 3 3 3 4 3 4 4 2 2 2 37 2 4 2 Average Overweight (x) 2 | . . . 3 2 1 2 3 2 2 2 2 1 1 2 . Largest Inventory Capacity 25 | 8 15 15 15 15 20 20 25 25 25 25 25 25 25 25 25 Average Capacity 21 | 7 13 15 15 15 16 20 23 25 25 25 25 22 25 25 19 Most Carried 25 | 2 15 14 15 14 20 20 23 25 24 25 25 25 25 25 25 Average Carried 19 | 1 10 13 14 13 15 19 19 23 23 24 24 21 23 24 10 Final Capacity 25 | 8 15 15 15 15 20 20 25 25 25 25 25 25 25 25 5 Final Carried 25 | 2 14 13 13 14 20 20 20 23 23 25 25 25 23 25 3 Class Distribution -------------------- 75% | Mutant 13% | Hacker-Mutant 9% | Commander-Mutant Dominant Class ---------------- Mutant | -10/Materials Mutant | -10/Mines Mutant | -10/Exiles Mutant | -9/Mines Mutant | -8/Materials Mutant | -8/Garrison Mutant | -8/Materials Mutant | -7/Factory Mutant | -7/Lower Caves Commander-Mutant | -7/Lower Caves Commander-Mutant | -7/Zion Mutant | -7/Deep Caves Mutant | -6/Proximity Caves Hacker-Mutant | -6/Factory Hacker-Mutant | -6/Waste Resources | -11 -10 -10 -10 -9 -8 -8 -8 -7 -7 -7 -7 -7 -6 -6 -6 ----------- Run | Jun Mat Min Exi Min Mat Gar Mat Fac Low Low Zio Dee Pro Fac Was Matter Collected 5485 | 285 488 187 . 252 910 715 708 661 149 48 46 603 170 263 . Remotely . | . . . . . . . . . . . . . . . . Salvage Created 12478 | 103 681 316 . 176 1748 1157 2204 1635 395 44 . 2291 216 1428 84 Parts 632 | 5 47 27 . 26 115 56 126 102 15 . . 51 11 51 . Haulers Intercepted 15 | . 2 . . . 3 . 4 4 . . . . . 2 . Recyclers Shooed 4 | . . . . . 3 . . 1 . . . . . . . Parts Field Recycled . | . . . . . . . . . . . . . . . . Retrieved Matter . | . . . . . . . . . . . . . . . . Parts Self-Destructed 25 | . . . . . . . . . 8 7 . . 10 . . Prevented . | . . . . . . . . . . . . . . . . Kills | -11 -10 -10 -10 -9 -8 -8 -8 -7 -7 -7 -7 -7 -6 -6 -6 ------- Run | Jun Mat Min Exi Min Mat Gar Mat Fac Low Low Zio Dee Pro Fac Was Combat Hostiles Destroyed 256 | . 15 11 . 17 29 20 38 28 12 2 . 62 9 12 1 Melee 60 | . . . . . . 3 9 17 4 2 . 9 3 12 1 Guns 66 | . 11 1 . . 18 13 23 . . . . . . . . Cannons 38 | . 4 10 . 5 8 1 2 2 . . . 6 . . . AOE 77 | . . . . 12 1 3 4 8 8 . . 35 6 . . Classes Destroyed 25 | 2 6 1 . 1 3 2 3 1 1 . . 4 1 . . Worker 14 | . . 1 . . 3 . 7 3 . . . . . . . Builder 5 | . 1 . . . 1 . 1 2 . . . . . . . Tunneler 3 | 1 . . . . . . 2 . . . . . . . . Hauler 15 | . 2 . . . 3 . 4 4 . . . . . 2 . Recycler 7 | 1 . . . . 2 . . 1 . . . . . 3 . Mechanic 2 | . . . . . . . 1 . . . . . . 1 . Operator 5 | . 2 . . . . . 1 1 . . . . . 1 . Drone 2 | . . . . . . . . . . . . . 2 . . Watcher 11 | . 3 . . . 3 . 2 2 . . . . . 1 . Swarmer 45 | . 3 5 . 14 6 . 6 1 4 2 . . 4 . . Cutter 3 | . . . . . . 3 . . . . . . . . . Grunt 86 | . 12 6 . 2 13 12 21 10 4 . . . . 6 . Brawler 8 | . . . . 1 . 2 . 3 2 . . . . . . Duelist 2 | . . . . . . . 1 1 . . . . . . . Protector 1 | . . . . . . . 1 . . . . . . . . Sentry 23 | . . . . . 8 3 7 2 1 . . . . 2 . Hunter 9 | . . . . . 1 . 2 3 . . . . 2 1 . Programmer 11 | . . . . . . . . 8 . . . . . 3 . Heavy 1 | . . . . . 1 . . . . . . . . . . Behemoth 3 | . . . . . . 1 . . . . . . 1 1 . Z-Light 8 | . . . . . . . . . . . . 8 . . . Assembler 2 | . . . . . . . . . . . . 2 . . . Assembled 41 | . . . . . . . . . . . . 41 . . . Golem 13 | . . . . . . . . . . . . 12 . . 1 Mutant 1 | . . . . . . . . . 1 . . . . . . Best Kill Streak 37 | 2 5 3 . 10 6 5 12 6 8 2 . 37 4 4 1 Combat Bots Only 35 | . 5 2 . 10 3 5 4 3 8 2 . 35 4 2 1 Max Kills in Single Turn 17 | 1 1 2 . 5 1 2 2 2 3 1 . 17 2 1 1 Gunslinging . | . . . . . . . . . . . . . . . . Exploded 17 | . . . . 5 1 2 1 1 3 . . 17 2 . . Melee 1 | . . . . . . 1 1 1 1 1 . 1 1 1 1 Uniques/NPCs Destroyed 2 | . . . . . . 1 . . . . . 1 . . . AZ-K3N (-8/Garrison) Z-Imprinter (-7/Deep Caves) Combat | -11 -10 -10 -10 -9 -8 -8 -8 -7 -7 -7 -7 -7 -6 -6 -6 -------- Run | Jun Mat Min Exi Min Mat Gar Mat Fac Low Low Zio Dee Pro Fac Was Damage Taken 13850 | . 472 495 . 249 1422 1272 2196 1481 509 78 . 1541 743 1596 1796 Core 1929 | . 45 51 . 20 83 164 202 201 10 . . 232 66 117 738 Absorbed by Shields 1361 | . . . . . . 8 94 391 182 29 . 388 . 269 . Redirected to Shielding 145 | . . . . . . . . . . . . 87 38 20 . Regen/Repaired (Parts) 2630 | . 102 . . . 539 . 454 . . . 746 . . 789 . Core Remaining (%) 49 | 100 . . . 53 . . 18 . . . . . 27 . . Volleys Fired 484 | 5 66 25 . 17 117 63 98 32 5 . . 51 5 . . Largest 2 | 2 2 2 . 2 2 2 2 2 2 . . 2 1 . . Hottest 157 | 70 70 75 . 65 103 157 157 117 86 . . 138 36 . . Shots Fired 909 | 10 132 50 . 20 232 115 175 62 6 . . 102 5 . . Gun 575 | 10 96 24 . . 183 97 148 16 1 . . . . . . Cannon 272 | . 36 26 . 11 49 13 19 32 . . . 86 . . . Launcher 62 | . . . . 9 . 5 8 14 5 . . 16 5 . . Special . | . . . . . . . . . . . . . . . . Kinetic 523 | 5 102 42 . 11 166 95 74 28 . . . . . . . Thermal 103 | 5 30 . . . . 2 66 . . . . . . . . Explosive 62 | . . . . 9 . 5 8 14 5 . . 16 5 . . Electromagnetic 221 | . . 8 . . 66 13 27 20 1 . . 86 . . . Robot Hit Streak 32 | 5 14 5 . 3 32 19 23 24 8 . . 15 5 . . Robot Miss Streak 5 | 1 4 3 . 2 5 2 3 4 1 . . 2 . . . Penetration Max 1 | . . . . . . . 1 1 . . . . . . . Secondary Targets 12 | . 1 . . . 2 4 5 . . . . . . . . Max Gunslinging Chain 1 | . 1 . . . 1 1 1 . . . . . . . . Shots Hit Robots 875 | 9 82 32 . 11 163 106 146 103 15 2 . 107 11 73 15 Core Hits 538 | 2 37 17 . 18 66 48 76 71 21 2 . 138 11 25 6 Critical Kills . | . . . . . . . . . . . . . . . . Critical Parts Destroyed 6 | . . . . . . 1 5 . . . . . . . . Critical Strikes 50 | . 1 3 . . 3 6 12 11 . . . 5 1 8 . Burn 6 | . 1 . . . . . 5 . . . . . . . . Destroy 7 | . . . . . . 1 6 . . . . . . . . Blast 9 | . . 3 . . 2 . . 4 . . . . . . . Corrupt 3 | . . . . . 1 . . 1 . . . 1 . . . Sever 19 | . . . . . . 5 1 6 . . . 4 . 3 . Impale 6 | . . . . . . . . . . . . . 1 5 . Melee Attacks 398 | . . . . . 3 37 30 93 13 6 24 45 8 118 21 Impact 15 | . . . . . . . . . . 1 14 . . . . Slashing 290 | . . . . . 3 37 30 93 13 5 10 40 2 36 21 Piercing 93 | . . . . . . . . . . . . 5 6 82 . Sneak Attacks 49 | . . . . . . 20 9 7 . . . . 2 11 . Combat Hostiles 5 | . . . . . . . . 1 . . . . 2 2 . Follow-up Attacks 27 | . . . . . . . . . . . . 4 2 21 . Damage Inflicted 32788 | 115 1231 575 . 907 3193 3926 5127 5354 1104 87 . 6322 878 3332 637 Guns 6795 | 115 821 210 . . 2103 1046 2315 165 20 . . . . . . Cannons 4372 | . 409 359 . 119 822 180 290 513 . . . 1680 . . . Explosions 7947 | . . . . 765 134 497 724 1489 626 . . 3157 555 . . Melee 13526 | . . . . . 104 2203 1783 3187 458 87 . 1485 323 3332 564 Ramming 148 | . 1 6 . 23 30 . 15 . . . . . . . 73 Kinetic 5631 | 65 983 473 . 119 2034 1046 556 355 . . . . . . . Thermal 2350 | 50 247 . . . 134 126 1699 94 . . . . . . . Explosive 7424 | . . . . 765 . 371 642 1308 626 . . 3157 555 . . Electromagnetic 3709 | . . 96 . . 891 180 432 410 20 . . 1680 . . . Impact . | . . . . . . . . . . . . . . . . Slashing 11392 | . . . . . 104 2203 1783 3187 458 87 . 1421 85 1500 564 Piercing 2134 | . . . . . . . . . . . . 64 238 1832 . Highest Corruption 7 | . 3 3 3 3 . 2 7 7 7 7 7 . . 2 . Average Corruption 4 | . 2 3 3 3 . 2 5 5 7 7 7 . . 1 . Corruption Purged 2 | . . . . . . . . . . . . . . 2 . Corruption Blocked . | . . . . . . . . . . . . . . . . Effects 265 | . 2 27 10 13 . 17 63 77 24 19 2 . . 11 . Message Errors 68 | . 1 8 1 3 . 3 17 22 5 5 1 . . 2 . Matter Fused 48 | . . 4 3 2 . 4 13 10 7 3 1 . . 1 . Heat Flow Errors 34 | . . 2 2 1 . 3 6 10 5 2 . . . 3 . Energy Discharges 34 | . . 4 1 . . 2 7 13 2 3 . . . 2 . Parts Rejected 4 | . . . . 1 . 1 2 . . . . . . . . Parts Fused 3 | . . . . 1 . . 1 1 . . . . . . . Data Loss (minor) 39 | . 1 5 3 1 . 4 4 11 4 4 . . . 2 . Data Loss (major) 15 | . . 1 . 3 . . 4 3 1 2 . . . 1 . Misfires 11 | . . 1 . . . . 4 6 . . . . . . . Alerts 6 | . . 1 . 1 . . 3 1 . . . . . . . Weapon Failures 3 | . . 1 . . . . 2 . . . . . . . . Overload Shots . | . . . . . . . . . . . . . . . . Overflow Damage 985 | . . 2 . 18 26 131 186 178 10 . . 138 66 230 . Projectiles 54 | . . 2 . . 11 . 41 . . . . . . . . Explosions 172 | . . . . 18 . 9 . 24 5 . . 91 25 . . Melee 759 | . . . . . 15 122 145 154 5 . . 47 41 230 . Knockbacks 19 | . 8 5 . . 4 . . 2 . . . . . . . Impact . | . . . . . . . . . . . . . . . . Kinetic 16 | . 6 5 . . 3 . . 2 . . . . . . . Secondary 3 | . 2 . . . 1 . . . . . . . . . . Self-Inflicted Damage 1024 | . . . . 27 96 84 188 411 55 . . 19 111 . 33 Shots 22 | . . . . 1 2 3 3 8 1 . . 1 3 . . Rammed 34 | . 3 1 . 4 7 . 3 . . . . . . . 16 Targets Rammed 36 | . 3 1 . 4 9 . 3 . . . . . . . 16 Kicked . | . . . . . . . . . . . . . . . . Crushed 2 | . . . . . 2 . . . . . . . . . . Highest Temperature 398 | 36 167 269 229 192 307 313 210 398 257 153 . 144 28 274 . Average Temperature 74 | 16 52 60 123 44 57 129 63 120 107 74 . 35 10 93 . Received Heat Transfer 3224 | . 210 171 . 6 549 516 839 196 59 6 . 254 24 394 . Effects 6 | . . 1 . . 4 . . 1 . . . . . . . Energy Bleed 2 | . . . . . 1 . . 1 . . . . . . . Interference 3 | . . 1 . . 2 . . . . . . . . . . Damage (minor) 1 | . . . . . 1 . . . . . . . . . . Siege Activations . | . . . . . . . . . . . . . . . . Robots Corrupted 15 | . . . . . 2 . . 1 . . . 12 . . . Combat Hostiles 15 | . . . . . 2 . . 1 . . . 12 . . . Parts Fried 8 | . . . . . 4 . 4 . . . . . . . . Impact Corruptions . | . . . . . . . . . . . . . . . . Robots Melted . | . . . . . . . . . . . . . . . . Combat Hostiles . | . . . . . . . . . . . . . . . . Parts Melted 9 | . 2 . . . . . 6 . . . . . . 1 . Heat Transferred 3732 | 148 814 . . . 100 137 2433 100 . . . . . . . Parts Sabotaged . | . . . . . . . . . . . . . . . . Parts Stolen . | . . . . . . . . . . . . . . . . Parts Stripped . | . . . . . . . . . . . . . . . . Power Chain Reactions 6 | . . . . . 2 2 1 1 . . . . . . . Missiles Intercepted . | . . . . . . . . . . . . . . . . Alert | -11 -10 -10 -10 -9 -8 -8 -8 -7 -7 -7 -7 -7 -6 -6 -6 ------- Run | Jun Mat Min Exi Min Mat Gar Mat Fac Low Low Zio Dee Pro Fac Was Peak Influence 989 | 10 356 357 . 436 492 989 973 806 . . . . . 131 26 Initial 481 | . 6 112 . . 91 236 481 442 . . . . . 9 11 Average 282 | 2 175 120 . 302 295 662 427 338 . . . . . 58 17 Maximum Alert Level 3 | . 1 1 . 2 2 3 3 3 . . . . . . . Low Security (%) 37 | 100 47 76 . 14 16 . 25 9 . . . . . 100 100 Level 1 40 | . 52 23 . 46 73 13 18 68 . . . . . . . Level 2 16 | . . . . 38 10 41 42 20 . . . . . . . Level 3 5 | . . . . . . 45 13 1 . . . . . . . Level 4 . | . . . . . . . . . . . . . . . . Level 5 . | . . . . . . . . . . . . . . . . High Security . | . . . . . . . . . . . . . . . . Max Security . | . . . . . . . . . . . . . . . . Squads Dispatched 41 | . 4 . . . 5 . 8 14 . . . . . 10 . Investigation 17 | . 2 . . . 4 . 4 3 . . . . . 4 . Extermination 10 | . . . . . . . . 7 . . . . . 3 . Reinforcement 11 | . 2 . . . 1 . 2 3 . . . . . 3 . Assault 3 | . . . . . . . 2 1 . . . . . . . Garrison . | . . . . . . . . . . . . . . . . Intercept . | . . . . . . . . . . . . . . . . Searches Triggered . | . . . . . . . . . . . . . . . . Construction Impeded 1 | . . . . . . . . 1 . . . . . . . Haulers Reinforced 2 | . . . . . . . . 1 . . . . . 1 . Active Scanning Responses . | . . . . . . . . . . . . . . . . Cargo Convoy Interrupts . | . . . . . . . . . . . . . . . . Stealth | -11 -10 -10 -10 -9 -8 -8 -8 -7 -7 -7 -7 -7 -6 -6 -6 --------- Run | Jun Mat Min Exi Min Mat Gar Mat Fac Low Low Zio Dee Pro Fac Was Distress Signals 13 | . 2 . . . 7 . 2 . . . . . . 2 . Communications Jammed 2 | . . . . . . . . . . . . . 2 . . Distress Signals . | . . . . . . . . . . . . . . . . Times Spotted 405 | . 30 14 . 31 77 27 56 46 12 4 . 69 13 20 6 Peak Tracking Total 37 | . 6 3 . 13 6 6 5 5 9 4 . 37 4 3 5 Tactical Retreats 45 | . 1 4 . 2 19 1 1 2 . . . 9 2 4 . Traps | -11 -10 -10 -10 -9 -8 -8 -8 -7 -7 -7 -7 -7 -6 -6 -6 ------- Run | Jun Mat Min Exi Min Mat Gar Mat Fac Low Low Zio Dee Pro Fac Was Traps Triggered 30 | . 5 . . . 5 3 4 10 . . . . . 3 . Indirectly . | . . . . . . . . . . . . . . . . Trap Hack Attempts . | . . . . . . . . . . . . . . . . Triggered . | . . . . . . . . . . . . . . . . Disarmed . | . . . . . . . . . . . . . . . . Reprogrammed . | . . . . . . . . . . . . . . . . Reused . | . . . . . . . . . . . . . . . . Traps Extracted . | . . . . . . . . . . . . . . . . Installed . | . . . . . . . . . . . . . . . . Triggered 1 | . . . . . . . . . . 1 . . . . . Machines | -11 -10 -10 -10 -9 -8 -8 -8 -7 -7 -7 -7 -7 -6 -6 -6 ---------- Run | Jun Mat Min Exi Min Mat Gar Mat Fac Low Low Zio Dee Pro Fac Was Machines Disabled 31 | . 3 1 . . 6 . 7 10 2 . . 2 . . . Max in Single Turn 4 | . 1 1 . . 1 . 2 4 1 . . 1 . . . Garrison Access 2 | . . . . . . . . 1 . . . . . 1 . Machines Repaired . | . . . . . . . . . . . . . . . . Machines Sabotaged . | . . . . . . . . . . . . . . . . Overloaded Fab Kills . | . . . . . . . . . . . . . . . . Hacking | -11 -10 -10 -10 -9 -8 -8 -8 -7 -7 -7 -7 -7 -6 -6 -6 --------- Run | Jun Mat Min Exi Min Mat Gar Mat Fac Low Low Zio Dee Pro Fac Was Machines Accessed 77 | . 8 1 2 . 16 4 9 20 3 1 1 . . 12 . Terminals 39 | . 5 . . . 10 4 5 11 . . . . . 4 . Fabricators 6 | . . . . . . . . 4 . . . . . 2 . Repair Stations 11 | . 1 . . . 2 . 2 2 . . . . . 4 . Recycling Units 6 | . 2 . . . 2 . . 1 . . . . . 1 . Scanalyzers 3 | . . . . . 1 . 2 . . . . . . . . Garrison Access 4 | . . . . . 1 . . 2 . . . . . 1 . Total Hacks 225 | . 20 1 2 . 53 6 32 51 11 1 4 . . 44 . Successful 131 | . 11 1 2 . 31 2 22 24 11 1 4 . . 22 . Failed 92 | . 8 . . . 21 4 10 27 . . . . . 22 . Catastrophic 21 | . . . . . 5 2 5 6 . . . . . 3 . Database Lockouts 2 | . 1 . . . 1 . . . . . . . . . . Manual 89 | . 15 . 1 . 32 . 8 18 . . . . . 15 . Terminals 116 | . 15 . . . 34 6 11 32 . . . . . 18 . Fabricators 19 | . . . . . . . . 10 . . . . . 9 . Repair Stations 38 | . 3 . . . 8 . 9 4 . . . . . 14 . Recycling Units 9 | . 2 . . . 4 . . 1 . . . . . 2 . Scanalyzers 18 | . . . . . 6 . 12 . . . . . . . . Garrison Access 6 | . . . . . 1 . . 4 . . . . . 1 . Terminal Hacks 51 | . 4 1 2 . 10 2 4 8 11 1 4 . . 4 . Record 10 | . . . 1 . . . . . 9 . . . . . . Part Schematic 5 | . . . . . . . . 1 . . 4 . . . . Robot Analysis 6 | . 2 . . . 2 . . . . . . . . 2 . Prototype ID Bank 2 | . 1 . . . 1 . . . . . . . . . . Open Door 5 | . . 1 . . . 1 . . 2 1 . . . . . Branch Access Points 1 | . . . . . . . . 1 . . . . . . . Emergency Access Points 1 | . . . . . . 1 . . . . . . . . . Terminal Index 1 | . . . . . . . . 1 . . . . . . . Garrison Index 1 | . . . . . 1 . . . . . . . . . . Alert Level 4 | . . . . . 1 . 2 1 . . . . . . . Unreport Threat 10 | . . . . . 4 . 2 2 . . . . . 2 . Locate Traps 1 | . . . . . . . . 1 . . . . . . . Hauler Manifests 2 | . 1 . . . 1 . . . . . . . . . . Zone Layout 1 | . . . . . . . . 1 . . . . . . . EX-Prototype ID Bank 1 | . . . 1 . . . . . . . . . . . . Fabricator Hacks 11 | . . . . . . . . 7 . . . . . 4 . Network Status 3 | . . . . . . . . 2 . . . . . 1 . Load Schematic 3 | . . . . . . . . 2 . . . . . 1 . Build 5 | . . . . . . . . 3 . . . . . 2 . Repair Station Hacks 26 | . 2 . . . 6 . 7 2 . . . . . 9 . Scan Component 15 | . 1 . . . 3 . 4 2 . . . . . 5 . Repair 11 | . 1 . . . 3 . 3 . . . . . . 4 . Recycling Unit Hacks 1 | . . . . . . . . 1 . . . . . . . Retrieve Components 1 | . . . . . . . . 1 . . . . . . . Scanalyzer 14 | . . . . . 6 . 8 . . . . . . . . Insert Component 7 | . . . . . 3 . 4 . . . . . . . . Analyze 7 | . . . . . 3 . 4 . . . . . . . . Garrison Access Hacks 3 | . . . . . 1 . . 1 . . . . . 1 . Unlock Access 1 | . . . . . 1 . . . . . . . . . . Seal Access 2 | . . . . . . . . 1 . . . . . 1 . Unauthorized Hacks 25 | . 5 . . . 8 . 3 5 . . . . . 4 . Terminals 19 | . 3 . . . 6 . 3 4 . . . . . 3 . Assimilate 4 | . . . . . 2 . . 2 . . . . . . . Botnet 11 | . 2 . . . 3 . 2 2 . . . . . 2 . Operators 4 | . 1 . . . 1 . 1 . . . . . . 1 . Fabricators 1 | . . . . . . . . 1 . . . . . . . Liberate 1 | . . . . . . . . 1 . . . . . . . Repair Stations . | . . . . . . . . . . . . . . . . Recycling Units 5 | . 2 . . . 2 . . . . . . . . 1 . Reject 1 | . . . . . . . . . . . . . . 1 . Tunnel 4 | . 2 . . . 2 . . . . . . . . . . Scanalyzers . | . . . . . . . . . . . . . . . . Garrison Access . | . . . . . . . . . . . . . . . . Data Cores Recovered 1 | . 1 . . . . . . . . . . . . . . Used . | . . . . . . . . . . . . . . . . Hacking Detections 61 | . 6 . . . 13 3 9 19 . . . . . 11 . Full Trace Events 13 | . 1 . . . 1 1 4 3 . . . . . 3 . Feedback Events . | . . . . . . . . . . . . . . . . Feedback Blocked . | . . . . . . . . . . . . . . . . Robot Schematics Acquired 3 | . . . . . . . . . . . 3 . . . . Robots Built 1 | . . . . . . . . . . . . . . 1 . Authchips . | . . . . . . . . . . . . . . . . Time 58 | . . . . . . . . . . . . . . 58 . Total Robot Build Rating 3 | . . . . . . . . . . . . . . 3 . Part Schematics Acquired 26 | . . . . . 3 . 2 1 . . 20 . . . . Parts Built 6 | . . . . . . . . 4 . . . . . 2 . Authchips . | . . . . . . . . . . . . . . . . Time 274 | . . . . . . . . 232 . . . . . 42 . Total Part Build Rating 26 | . . . . . . . . 18 . . . . . 8 . Parts Repaired 11 | . 1 . . . 3 . 3 . . . . . . 4 . Time 559 | . 26 . . . 135 . 279 . . . . . . 119 . Parts Recycled . | . . . . . . . . . . . . . . . . Recycled Matter . | . . . . . . . . . . . . . . . . Retrieved Matter . | . . . . . . . . . . . . . . . . Retrieved Components 10 | . . . . . . . . 10 . . . . . . . Parts Scanalyzed 6 | . . . . . 3 . 3 . . . . . . . . Part Schematics Acquired 5 | . . . . . 3 . 2 . . . . . . . . Parts Damaged . | . . . . . . . . . . . . . . . . Bothacking | -11 -10 -10 -10 -9 -8 -8 -8 -7 -7 -7 -7 -7 -6 -6 -6 ------------ Run | Jun Mat Min Exi Min Mat Gar Mat Fac Low Low Zio Dee Pro Fac Was Used RIF Installer . | . . . . . . . . . . . . . . . . Robots Hacked . | . . . . . . . . . . . . . . . . Non-combat . | . . . . . . . . . . . . . . . . Combat . | . . . . . . . . . . . . . . . . Robot Hacks Applied . | . . . . . . . . . . . . . . . . Relay Couplers Released 3 | . . . . . . 3 . . . . . . . . . Programmers 3 | . . . . . . 3 . . . . . . . . . Fabnet Peak Effective % . | . . . . . . . . . . . . . . . . Robots Rewired 5 | . . . . . . . . . 5 . . . . . . Allies Hacked 2 | . . . . . . . . . . . . . . 2 . Hacks Repelled . | . . . . . . . . . . . . . . . . Allies | -11 -10 -10 -10 -9 -8 -8 -8 -7 -7 -7 -7 -7 -6 -6 -6 -------- Run | Jun Mat Min Exi Min Mat Gar Mat Fac Low Low Zio Dee Pro Fac Was Total Allies 19 | . . . . . 4 3 . 4 5 . . . 1 2 . Largest Group 5 | . . . . . 1 2 1 2 5 5 4 4 1 1 . Highest-Rated Group 202 | . . . . . 26 202 25 64 92 92 76 76 41 85 . Highest-Rated Ally 179 | . . . . . 26 179 25 32 32 20 20 20 41 85 . Total Orders 17 | . . . 1 1 6 5 . 1 . . . 1 . 2 . STAY 5 | . . . . . 1 2 . 1 . . . 1 . . . ROAM 3 | . . . . 1 2 . . . . . . . . . . FOLLOW 3 | . . . . . 1 2 . . . . . . . . . RETURN 6 | . . . 1 . 2 1 . . . . . . . 2 . Ally Attacks 111 | . . . . 2 35 13 . 13 2 15 . 11 19 1 . Total Damage 1305 | . . . . 8 130 235 . 344 38 235 . 149 156 10 . Kills 14 | . . . . . 3 3 . 5 1 2 . . . . . Allies Corrupted . | . . . . . . . . . . . . . . . . Allies Melted 1 | . . . . 1 . . . . . . . . . . . Intel | -11 -10 -10 -10 -9 -8 -8 -8 -7 -7 -7 -7 -7 -6 -6 -6 ------- Run | Jun Mat Min Exi Min Mat Gar Mat Fac Low Low Zio Dee Pro Fac Was Robot Analysis Total 6 | . 2 . . . 2 . . . . . . . . 2 . Derelict Logs Recovered 6 | . . 2 . 1 . . . . 1 1 1 . . . . Drone Launches 70 | . . 1 . 2 32 11 . . . . . . 16 8 . Drone Recoveries 68 | . . . 1 2 31 10 . . . . . . 16 8 . Exploration | -11 -10 -10 -10 -9 -8 -8 -8 -7 -7 -7 -7 -7 -6 -6 -6 ------------- Run | Jun Mat Min Exi Min Mat Gar Mat Fac Low Low Zio Dee Pro Fac Was Turns Passed 24734 | 112 1518 1517 473 606 2922 1432 2257 4659 889 596 1235 2713 541 2995 269 Spaces Moved 14314 | 56 764 665 372 359 1510 762 1028 2805 598 440 911 1769 378 1712 185 Core 8 | 4 . . . . . . . . . . . 4 . . . Treads 1814 | 52 764 663 . 80 255 . . . . . . . . . . Legs . | . . . . . . . . . . . . . . . . Wheels 12492 | . . 2 372 279 1255 762 1028 2805 598 440 911 1765 378 1712 185 Hover . | . . . . . . . . . . . . . . . . Flight . | . . . . . . . . . . . . . . . . Fastest Speed 50 | 50 160 125 125 125 115 115 145 130 130 130 130 100 115 130 100 Average Speed 140 | 152 160 214 125 150 142 140 152 134 130 130 130 128 129 135 113 Slowest Speed 1900 | 160 240 240 125 240 245 145 160 160 130 130 130 1900 130 160 130 Overloaded Moves . | . . . . . . . . . . . . . . . . Propulsion Burnouts . | . . . . . . . . . . . . . . . . Robots Hopped . | . . . . . . . . . . . . . . . . Cave-ins Triggered 1 | . . . . . . . . . 1 . . . . . . Exploration Rate (%) 68 | 5 99 97 71 65 97 83 78 65 82 71 85 81 57 29 28 Regions Visited 15 Branch Regions 8 Pre-discovered Areas 9 | . 2 1 1 1 2 . . . 2 . . . . . . Known Exits Taken 4 | . . . . . 1 . 1 1 . . . . 1 . . Unknown Exits Taken 9 | 1 1 1 1 1 . . . . 1 1 1 1 . . . Scrap Searched 12 | . . 1 . 3 . . . . 1 3 3 . 1 . . Spaces Dug 49 | . . . . . 1 1 5 22 1 . 2 1 . 10 6 Terrain Destroyed 447 | . . . . 64 12 44 137 108 35 . 2 1 28 10 6 Melee 44 | . . . . . 1 1 . 22 1 . 2 1 . 10 6 Projectile 16 | . . . . . 1 . 10 5 . . . . . . . AOE 386 | . . . . 64 10 43 126 81 34 . . . 28 . . Terrain Rammed . | . . . . . . . . . . . . . . . . Walls Destroyed . | . . . . . . . . . . . . . . . . Machines Disabled . | . . . . . . . . . . . . . . . . Actions | -11 -10 -10 -10 -9 -8 -8 -8 -7 -7 -7 -7 -7 -6 -6 -6 --------- Run | Jun Mat Min Exi Min Mat Gar Mat Fac Low Low Zio Dee Pro Fac Was Total 17756 | 69 922 700 381 402 2051 968 1509 3625 694 462 951 2091 407 2290 234 Wait 1950 | . 52 3 . 19 342 30 311 605 13 8 4 126 6 427 4 Move 14300 | 55 763 664 371 358 1510 760 1027 2804 597 439 910 1768 377 1712 185 Hop . | . . . . . . . . . . . . . . . . Pick Up 115 | 2 13 2 2 1 13 5 5 16 1 3 3 39 1 8 1 Fast Attach 109 | 7 11 1 1 1 17 12 8 9 . 3 5 16 . 17 1 Attach 40 | . 2 3 1 . 4 3 9 4 1 . 1 5 2 4 1 Detach 34 | . 3 . 2 . 5 5 6 5 . . 1 . . 5 2 Swap 96 | . 3 1 1 2 14 16 9 15 3 . 5 11 9 7 . Drop 124 | . 6 . 3 . 17 12 3 18 . 4 7 34 1 16 3 Fire 484 | 5 66 25 . 17 117 63 98 32 5 . . 51 5 . . Melee 356 | . . . . . 3 37 30 93 13 5 15 40 6 93 21 Ram 21 | . . . . 4 1 . . . . . . . . . 16 Kick . | . . . . . . . . . . . . . . . . Crush 15 | . 3 1 . . 8 . 3 . . . . . . . . Escape Stasis 48 | . . . . . . 24 . 24 . . . . . . . Rewire 64 | . . . . . . 1 . . 61 . . 1 . 1 . Trap . | . . . . . . . . . . . . . . . . Miscellaneous . | . . . . . . . . . . . . . . . . Route ------- -11/Junkyard -10/Materials (discovered 5 exits: [*Mat x3] / *Min x2) -10/Mines (discovered 2 exits: [*Mat] / *Exi) -10/Exiles (discovered 2 exits: [*Min x2]) -9/Mines (discovered 2 exits: *Mat x2) -8/Materials (discovered 6 exits: *Fac x3 / [*Sto x2] / Gar) -8/Garrison (discovered 3 exits: *Mat x3) -8/Materials (discovered 2 exits: *Fac / [*Sto]) -7/Factory (discovered 6 exits: *Fac x4 / *Low x2) -7/Lower Caves -7/Lower Caves -7/Zion (discovered 2 exits: [*Dee] / [*Pro]) -7/Deep Caves -6/Proximity Caves -6/Factory (discovered 4 exits: *Fac x2 / [*Low] / Ext) -6/Waste History --------- Turn | Location | Event 19 | -11/Junkyard | Discovered new exit (range 16) 113 | -11/Junkyard | Entered Materials 200 | -10/Materials | Discovered new exit (range 13) 304 | -10/Materials | Build established: Mutant 486 | -10/Materials | Discovered new exit (range 13) 691 | -10/Materials | Discovered new exit (range 5) 952 | -10/Materials | Discovered new exit (range 13) 1057 | -10/Materials | Central database locked down 1162 | -10/Materials | Discovered new exit (range 14) 1469 | -10/Materials | Repaired Lgt. Treads 1631 | -10/Materials | Entered Mines 2122 | -10/Mines | Deemed a non-threat by the Exiles lab entrance 2122 | -10/Mines | Discovered new exit (range 5) 2191 | -10/Mines | Learned location of 1 exit from Materials 2238 | -10/Mines | Learned location of Storage (-8) 2542 | -10/Mines | Discovered new exit (range 13) 2587 | -10/Mines | Learned Materials security intel 2963 | -10/Mines | Found the Drone Emporium 2974 | -10/Mines | Found Prototype Device 2975 | -10/Mines | Identified Splice Drone Bay 3148 | -10/Mines | Entered Exiles 3148 | -10/Exiles | Accompanied by 1 ally 3168 | -10/Exiles | Discovered new exit (range 15) 3181 | -10/Exiles | Met 8R-AWN 3201 | -10/Exiles | Met EX-HEX 3237 | -10/Exiles | Met EX-BIN 3254 | -10/Exiles | Aligned with FarCom system 3256 | -10/Exiles | Given EX-Vault access code 3286 | -10/Exiles | Opened EX-Vault 3298 | -10/Exiles | Found Longsword +1 3326 | -10/Exiles | Warned to stay clear of 0b10 Research branches 3397 | -10/Exiles | Met EX-DEC 3420 | -10/Exiles | Learned location of Zion (-7) 3608 | -10/Exiles | Discovered new exit (range 10) 3621 | -10/Exiles | Left Exiles lab with Longsword +1 3621 | -10/Exiles | Entered Mines 3628 | -9/Mines | Received a Rocket Launcher from a helpful Derelict 3730 | -9/Mines | Discovered new exit (range 16) 3741 | -9/Mines | Destroyed 10 combat bots 4022 | -9/Mines | Discovered new exit (range 9) 4165 | -9/Mines | Assembled infested the area 4170 | -9/Mines | Assisted by a Guerilla fighting off Assembled 4227 | -9/Mines | Entered Materials 4227 | -8/Materials | Evolved 4 slots: Propulsion x1, Utility x3 4228 | -8/Materials | Identified exit to Factory 4247 | -8/Materials | Discovered new exit (range 15) 5352 | -8/Materials | Central database locked down 5451 | -8/Materials | Discovered new exit (range 14) 5511 | -8/Materials | Discovered exit to Factory (range 16) 5898 | -8/Materials | Discovered exit to Factory (range 16) 6413 | -8/Materials | Repaired Hrd. Heavy Armor Plating 6768 | -8/Materials | Repaired Corrupted Arm. Treads 6844 | -8/Materials | Repaired Imp. Heat Sink 7131 | -8/Materials | Build established: Scavenger-Mutant 7149 | -8/Materials | Identified exit to Garrison 7149 | -8/Materials | Entered Garrison 7149 | -8/Garrison | Accompanied by 1 ally 7175 | -8/Garrison | Triggered checkpoint 7302 | -8/Garrison | Triggered checkpoint 7380 | -8/Garrison | Triggered checkpoint 7484 | -8/Garrison | Triggered checkpoint 7523 | -8/Garrison | Spotted B-75 Beast 7529 | -8/Garrison | Discovered new exit (range 15) 7576 | -8/Garrison | Destroyed B-75 Beast 7793 | -8/Garrison | Build established: Mutant 7816 | -8/Garrison | Triggered checkpoint 7888 | -8/Garrison | Discovered new exit (range 3) 7945 | -8/Garrison | Rescued AZ-K3N 7999 | -8/Garrison | Triggered checkpoint 8097 | -8/Garrison | Rescued a captive Derelict 8270 | -8/Garrison | Destroyed AZ-K3N 8290 | -8/Garrison | Found Prototype Processor 8290 | -8/Garrison | Identified Spectral Analyzer 8434 | -8/Garrison | Discovered new exit (range 8) 8444 | -8/Garrison | Attempted to access garrison exit controls, blocked by remote lockdown 8581 | -8/Garrison | Entered Materials 8581 | -8/Materials | Accompanied by 1 ally 8901 | -8/Materials | Discovered new exit (range 3) 9098 | -8/Materials | Core integrity fell below 50% 9117 | -8/Materials | Discovered exit to Factory (range 24) 9505 | -8/Materials | Repaired Enh. Armored Medium Treads 10181 | -8/Materials | First assault squad dispatched 10291 | -8/Materials | Repaired Broken Enh. Armored Medium Treads 10291 | -8/Materials | Lost 4 parts (1n1u2w) 10350 | -8/Materials | Repaired Neutrino Core 10567 | -8/Materials | Core integrity fell below 20% 10838 | -8/Materials | Entered Factory 10838 | -7/Factory | Evolved 2 slots: Propulsion x1, Utility x1 11152 | -7/Factory | Discovered new exit (range 13) 11475 | -7/Factory | Fabricated Arm. Huge Wheel? 11977 | -7/Factory | Discovered new exit (range 16) 12022 | -7/Factory | Identified exit to Factory 12144 | -7/Factory | Fabricated Arc Projector? 12555 | -7/Factory | Discovered exit to Factory (range 10) 12636 | -7/Factory | Discovered exit to Factory (range 15) 13240 | -7/Factory | Discovered exit to Factory (range 16) 14042 | -7/Factory | Identified exit to Lower Caves 14139 | -7/Factory | Fabricated Lyr. Heavy Armor Plating? 15238 | -7/Factory | First assault squad dispatched 15497 | -7/Factory | Entered Lower Caves 15497 | -7/Lower Caves | Accompanied by 1 ally 15535 | -7/Lower Caves | Met a Warlord Commander 15536 | -7/Lower Caves | Learned location of Warlord (-5) 15539 | -7/Lower Caves | Found Encrypted Comm Array 15628 | -7/Lower Caves | Attracted the attention of an 0b10 outpost 15657 | -7/Lower Caves | Destroyed 8 combat bots 15783 | -7/Lower Caves | Learned location of 1 exit from Factory 15783 | -7/Lower Caves | Learned 8 Factory zone layouts 15783 | -7/Lower Caves | Learned Armory trap positions 15783 | -7/Lower Caves | Learned Research emergency access door positions 15783 | -7/Lower Caves | Learned Armory terminal intel 15834 | -7/Lower Caves | Learned Factory terminal intel 16305 | -7/Lower Caves | Attacked by a delusional Derelict stockpiling Unaware 16310 | -7/Lower Caves | Crushed by falling debris 16366 | -7/Lower Caves | Discovered new exit (range 3) 16386 | -7/Lower Caves | Entered another Lower Caves area 16386 | -7/Lower Caves | Accompanied by 5 allies 16630 | -7/Lower Caves | Build established: Commander-Mutant 16644 | -7/Lower Caves | Encountered a Warlord checkpoint 16792 | -7/Lower Caves | Learned Factory interactive machine intel 16971 | -7/Lower Caves | Discovered new exit (range 2) 16982 | -7/Lower Caves | Entered Zion 16982 | -7/Zion | Accompanied by 4 allies 17037 | -7/Zion | System corruption cleaned by Quarantine Array 17101 | -7/Zion | Discovered new exit (range 15) 17471 | -7/Zion | Given the Hacking Drone Bay 17472 | -7/Zion | Found Prototype Device 17542 | -7/Zion | Found CR-A16's Pointy Stick 17803 | -7/Zion | Identified Hacking Drone Bay 17833 | -7/Zion | Received a visual enhancement algorithm 17916 | -7/Zion | Learned Factory emergency access door positions 18033 | -7/Zion | Visited the Megawrench Repair Shop 18103 | -7/Zion | Megawrench repaired 9 parts 18207 | -7/Zion | Discovered new exit (range 5) 18208 | -7/Zion | Saw the warning signs outside the Deep Caves entrance 18217 | -7/Zion | Entered Deep Caves 18217 | -7/Deep Caves | Accompanied by 4 allies 18572 | -7/Deep Caves | Attacked by Z-Imprinter 18591 | -7/Deep Caves | Destroyed Z-Imprinter 18887 | -7/Deep Caves | Build established: Mutant 18924 | -7/Deep Caves | Found Prototype Protection 18924 | -7/Deep Caves | Identified Zio. Weapon Casing 19279 | -7/Deep Caves | Found Zio. Weapon Casing 19281 | -7/Deep Caves | Found Zio. Weapon Casing 19739 | -7/Deep Caves | Discovered new exit (range 6) 19824 | -7/Deep Caves | Spotted as-68079 19854 | -7/Deep Caves | Destroyed as-68079 20001 | -7/Deep Caves | Found GOLEM Unit 20085 | -7/Deep Caves | Spotted as-45862 20126 | -7/Deep Caves | Core integrity fell below 50% 20128 | -7/Deep Caves | Destroyed as-45862 20182 | -7/Deep Caves | Triggered Deep Caves wall 20182 | -7/Deep Caves | Spotted AS-97055 20182 | -7/Deep Caves | Spotted AS-13977 20203 | -7/Deep Caves | Destroyed AS-13977 20206 | -7/Deep Caves | Destroyed AS-97055 20227 | -7/Deep Caves | Destroyed 35 combat bots 20346 | -7/Deep Caves | Found Firepult 20377 | -7/Deep Caves | Exposed GOLEM chamber 20381 | -7/Deep Caves | Found GOLEM Unit 20385 | -7/Deep Caves | Found GOLEM Unit 20700 | -7/Deep Caves | Found Unknown Processor 20930 | -7/Deep Caves | Entered Proximity Caves 20965 | -6/Proximity Caves | Spotted B-75 Beast 20996 | -6/Proximity Caves | Destroyed B-75 Beast 21391 | -6/Proximity Caves | Discovered exit to Factory (range 3) 21471 | -6/Proximity Caves | Entered Factory 21471 | -6/Factory | Evolved 2 slots: Power x1, Utility x1 21472 | -6/Factory | Identified exit to Factory 21473 | -6/Factory | Identified exit to Extension 21475 | -6/Factory | Loaded intel: 53 interactive machine locations 21476 | -6/Factory | Loaded intel: 27 terminal locations 21780 | -6/Factory | Build established: Hacker-Mutant 22007 | -6/Factory | Fabricated M-28 Smith? 22092 | -6/Factory | P-60 Hacker assimilated allied Smith 5a 22512 | -6/Factory | Fabricated Arm. Huge Wheel (x2) 22574 | -6/Factory | Repaired Adv. Cooling System 22870 | -6/Factory | Discovered new exit (range 8) 23101 | -6/Factory | Repaired Arm. Huge Wheel 23694 | -6/Factory | Repaired Arm. Huge Wheel 23721 | -6/Factory | Repaired Imp. Heavy Armor Plating 24047 | -6/Factory | Spotted B-75 Beast 24053 | -6/Factory | Destroyed B-75 Beast 24466 | -6/Factory | Sucked down chute 24466 | -6/Factory | Entered Waste 24477 | -6/Waste | Spotted C-40 Crusher 24479 | -6/Waste | Spotted C-40 Crusher 24485 | -6/Waste | Spotted C-40 Crusher 24541 | -6/Waste | Spotted C-40 Crusher 24561 | -6/Waste | Crushed by Compactor (1 part destroyed, 1 dropped) 24629 | -6/Waste | Crushed by Compactor (0 parts destroyed, 1 dropped) 24640 | -6/Waste | Spotted C-40 Crusher 24703 | -6/Waste | Crushed by Compactor (1 part destroyed) 24718 | -6/Waste | Crushed by Compactor (1 part destroyed) 24719 | -6/Waste | Crushed by Compactor (0 parts destroyed, 1 dropped) 24722 | -6/Waste | Crushed by Compactor (1 part destroyed, 2 dropped) 24728 | -6/Waste | Core integrity fell below 50% 24732 | -6/Waste | Core integrity fell below 20% 24735 | -6/Waste | Destroyed by C-40 Crusher with Compactor Last Messages --------------- 24722_ Huge Storage Unit crushed. 24722_ Mak. Hacking Suite crushed. 24722_ Imp. System Shield crushed. 24722_ Slammed into C-40 Crusher. 24723_ 3 Matter crushed. 24724_ Slammed into C-40 Crusher. 24726_ 4 Matter crushed. 24727_ Slammed into C-40 Crusher. 24727_ 4 Matter crushed. 24728_ 2 Matter crushed. 24728_ Slammed into C-40 Crusher. 24730_ 2 Matter crushed. 24731_ 5 Matter crushed. 24731_ Slammed into C-40 Crusher. 24732_ 2 Matter crushed. 24733_ Slammed into C-40 Crusher. 24733_ 5 Matter crushed. 24734_ 4 Matter crushed. 24734_ Slammed into C-40 Crusher. 24735_ 5 Matter crushed. Map ----- +----------------------------------------------------+ | ?????????????????????????????????????????????????? | | ?????????????????????????????????????????????????? | | ?????????????????????????????????????????????????? | | ?????????????????????????????????????????????????? | | ?????????????????????????????????????????????????? | | ?????????????????????????????????????????????????? | | ?????????????????????????????????????????????????? | | ?????????????????????????????????????????????????? | | ?????????????????????????????????????????????????? | | ?????????????????????????????????????????????????? | | ?????????????????????????????????????????????????? | | ?????????????????????????????????????????????????? | | ?????????????????????????????????????????????????? | | ?????????????????????????????????????????????????? | | ????????????????????###??????????????????????????? | | ???????????????????## ##?????????????????????????? | | ??????????????????## #;#####?????????????????????? | | ?????????????????## ### #?????????????????????? | | ????????##########"##?# #?????????????????????? | | ????????# ! #??# #?????????????????????? | | ????????# #??# #?????????????????????? | | ????????# #### CC#?????????????????????? | | ????????# CC#?????????????????????? | | ????????# CC #?????????????????????? | | ????????# CC #?????????????????????? | | ????????# CC@%#?????????????????????? | | ????????# ####CCCC#?????????????????????? | | ????????# #??# CC#?????????????????????? | | ????????# #??# CC#???????????#?????????? | | ????????############??# CC#????????? #?????????? | | ????????????????????### ######## #?????????? | | ????????????????????# ???????? | | ????????????????????# ???????? | | ????????????????????# ???????? | | ????????????????????# ! ????????? | | ????????????????????### ######## ##????????? | | ??????????????????????# #????????? #?????????? | | ??????????????????????# #???????????#?????????? | | ??????????????????????# #?????????????????????? | | ????????????????????### #?????????????????????? | | ????????????????????# #?????????????????????? | | ????????????????????# #?????????????????????? | | ????????????????????# #?????????????????????? | | ????????????????????# #?????????????????????? | | ????????????????????### #?????????????????????? | | ??????????????????????# #?????????????????????? | | ??????????????????????# #?????????????????????? | | ??????????????????????# #?????????????????????? | | ????????????????????### ###???????????????????? | | ????????????????????# #???????????????????? | +----------------------------------------------------+ Best States ------------- Heat Dissipation 65 Energy Generation 31 Energy Capacity 480 Matter Stores 300 Matter Capacity 300 Sight Range 24 Terrain Scan Density 10 Jamming Range 12 Additional Mass Support 9 Armor Coverage 1000 Resistance: KI 30 Resistance: TH 15 Weapon Shielding 100 Melee Speed Boost 40 Evasion (%) 40 Recoil Reduction 3 Offensive Hacking 11 Defensive Hacking 22 Item Schematics ----------------- Arm. Huge Wheel | -8/Materials | Scanalyzed Lrn. Tractor Beam | -8/Materials | Scanalyzed Transport Network Coupler | -8/Materials | Scanalyzed Lyr. Heavy Armor Plating | -8/Materials | Scanalyzed Adv. Cooling System | -8/Materials | Scanalyzed Imp. Hacking Suite | -7/Factory | Hacked Riot Gun | -7/Zion | Free Barrage Gun | -7/Zion | Free Slug Cannon | -7/Zion | Free Flamer | -7/Zion | Free Adv. Signal Interpreter | -7/Zion | Archive Mak. Hacking Suite | -7/Zion | Archive Imp. Deuterium Engine | -7/Zion | Archive Imp. Target Analyzer | -7/Zion | Archive Hvy. Treads | -7/Zion | Archive Energy Filter | -7/Zion | Archive Beamcaster | -7/Zion | Archive Adv. Assault Cannon | -7/Zion | Archive Power Amplifier | -7/Zion | Archive Great Axe | -7/Zion | Archive Lgt. Fission Core | -7/Zion | Archive Force Booster | -7/Zion | Archive Imp. Reaction Control System | -7/Zion | Archive Imp. Shield Generator | -7/Zion | Archive Imp. Arc Projector | -7/Zion | Archive Tiamat Missile Launcher | -7/Zion | Archive Robot Schematics ------------------ K-01 Serf | -7/Zion | Archive W-25 Informer | -7/Zion | Archive T-07 Excavator | -7/Zion | Archive Fabricated ------------ Arm. Huge Wheel | x2 | -7/Factory Arc Projector | x1 | -7/Factory | Preloaded Lyr. Heavy Armor Plating | x1 | -7/Factory M-28 Smith | x1 | -6/Factory | Preloaded Arm. Huge Wheel | x2 | -6/Factory Alien Tech Used ----------------- None Achievements -------------- Factory Defaults Challenges ------------ None Game ------ Seed IonicCannonStreamer Manual? 0 Play Time 02:31:19 Cumulative 155.4 hours Start 2024.02.01 @ 07:43:37 End 2024.02.01 @ 17:51:28 Sessions 3 Manual Loads 0 Difficulty Rogue Special Mode None Game No. 140 Rogue 140 Adventurer 0 Explorer 0 Win Type - Total 2 Types 2/0/0/0/0/0/0/0/0 Lore% 59 Gallery% 67 Achievement% 58 Wizard Run 0 Options --------- ASCII 0 Keyboard 1 Movement Numpad Keybinds 0 Fullscreen 2 Font 18/SmallcapsGlow Map View 76x50 Tactical HUD 1 Map Filters NONE Filters NONE Steam 1 RUN: beb8368a-af72-4637-a67d-cd8db7049da5